bitfinex/quotes_ETHUSD_20260216
["timestamp","ask_amount","ask_price","bid_price","bid_amount"]
[1771249473391,1.26439409,1977.3,1975.4,0.49776637]
[1771249473822,5.05706265,1977.5,1975.6,0.49776637]
[1771249475105,1.2642225,1977.5,1975.8,0.49776637]
[1771249475291,1.73773446,1977.5,1975.8,0.49776637]
[1771249475494,0.0011,1977.1,1975.8,0.49776637]
[1771249476504,0.0011,1977.1,1975.8,0.92244873]
[1771249476731,0.0011,1977.1,1976.0,0.49776637]
[1771249477729,0.0011,1977.1,1976.2,0.49776637]
[1771249478201,0.0011,1977.2,1976.5,0.49776637]
[1771249479194,0.0011,1977.4,1976.5,0.49776637]
[1771249480023,0.0011,1977.6,1976.9,0.49776637]
[1771249481044,0.0011,1977.7,1976.7,0.18685624]
[1771249481346,0.0011,1978.1,1977.1,0.49776637]
[1771249484933,0.0011,1978.1,1976.7,0.46245942]
[1771249487907,0.46563751,1978.1,1976.7,0.46245942]
[1771249488541,0.0011,1977.8,1976.7,0.46245942]
[1771249488739,0.0011,1977.8,1976.4,0.57780815]
[1771249488740,0.46563751,1977.8,1976.4,0.57780815]
[1771249488960,0.46563751,1977.8,1976.1,0.001]
[1771249489110,1.72886661,1977.4,1976.1,0.47640815]
[1771249489443,0.46453751,1977.4,1976.1,0.47640815]
[1771249489610,1.72865753,1977.7,1976.1,0.47640815]
[1771249489807,0.46453751,1977.6,1976.1,0.47640815]
[1771249491244,1.2642225,1977.5,1976.1,0.47640815]
[1771249491425,1.72874789,1977.6,1976.1,0.47640815]
[1771249491621,0.46453751,1977.5,1976.1,0.47640815]
[1771249492743,1.26412459,1977.7,1976.2,0.47540815]
[1771249492944,0.46453751,1977.6,1976.2,0.47540815]
[1771249493133,1.72876001,1977.5,1976.2,0.47540815]
[1771249493451,0.46453751,1977.4,1976.1,0.001]
[1771249495262,0.46453751,1977.1,1976.1,0.001]
[1771249495923,1.72887095,1977.4,1976.1,0.47640815]
[1771249496127,0.46453751,1977.3,1976.1,0.47640815]
[1771249496554,1.26433344,1977.4,1976.1,0.47640815]
[1771249496762,1.72879325,1977.5,1976.1,0.47640815]
[1771249496965,1.72970307,1977.8,1976.2,0.47540815]
[1771249497830,1.72967615,1977.8,1976.2,0.47540815]
[1771249498871,0.0011,1977.8,1976.2,0.47540815]
[1771249499036,1.26513476,1977.8,1976.2,0.47540815]
[1771249500238,0.0011,1977.8,1976.6,8.87323159]
[1771249500563,0.0011,1977.8,1976.8,0.47540815]
[1771249500774,0.46563751,1977.8,1976.5,0.47540815]
[1771249500939,0.0011,1977.7,1976.5,0.47540815]
[1771249501572,0.0011,1977.7,1976.6,8.87323159]
[1771249501756,0.0011,1977.7,1976.7,0.47540815]
[1771249502082,0.0011,1977.7,1976.9,0.47540815]
[1771249502459,0.0011,1977.7,1976.7,0.47540815]
[1771249502774,0.0011,1977.7,1976.4,0.47540815]
[1771249503069,0.46563751,1977.7,1976.4,0.47540815]
[1771249503269,0.0011,1977.7,1976.5,0.47540815]
[1771249504583,0.0011,1977.7,1976.9,0.47540815]
[1771249504741,0.0011,1977.7,1977.1,0.47540815]
[1771249506050,0.0011,1977.7,1976.7,0.1024]
[1771249506254,0.46563751,1977.7,1976.2,0.001]
[1771249507286,0.46453751,1977.5,1976.2,0.001]
[1771249507453,0.46453751,1977.3,1976.2,0.001]
[1771249509774,1.26441432,1977.2,1976.2,0.001]
[1771249510276,1.72893959,1977.3,1976.2,0.001]
[1771249511094,0.46453751,1977.6,1976.2,0.001]
[1771249511303,1.72874592,1977.6,1976.2,0.001]
[1771249511589,1.72874592,1977.6,1976.2,0.47640815]
[1771249511812,0.46453751,1977.4,1976.2,0.001]
[1771249512012,0.46453751,1977.2,1976.2,0.001]
[1771249512916,0.46453751,1977.2,1976.3,0.001]
[1771249513820,0.45379381,1977.0,1976.3,0.001]
[1771249514024,0.45379381,1977.0,1976.0,0.001]
[1771249515533,10.13770986,1977.1,1974.8,0.48657757]
[1771249515534,8.87323159,1976.2,1974.8,0.48657757]
[1771249515700,1.26518218,1976.0,1974.7,0.001]
[1771249516020,0.45379381,1975.9,1974.7,0.001]
[1771249516388,1.26518218,1976.0,1974.7,0.001]
[1771249517022,1.71897599,1976.0,1974.7,0.001]
[1771249517211,0.45379381,1975.9,1974.7,0.001]
[1771249517790,1.26543834,1975.6,1974.7,0.001]
[1771249518604,1.71923215,1975.6,1974.7,0.001]
[1771249519101,14.67597701,1976.1,1974.7,0.001]
[1771249519102,0.45379381,1976.3,1974.9,9.61524827]
[1771249519294,0.45379381,1977.0,1975.3,0.58897757]
[1771249519493,5.05689333,1977.5,1975.3,0.58897757]
[1771249519693,11.357442,1977.2,1975.3,0.58897757]
[1771249519894,7.32081904,1977.0,1975.3,0.48657757]
[1771249520107,0.45379381,1976.8,1975.3,0.48657757]
[1771249520306,1.26454223,1977.0,1975.3,0.48657757]
[1771249521097,1.26445427,1977.2,1975.5,0.48657757]
[1771249521800,1.26445427,1977.2,1974.7,0.001]
[1771249521801,9.61524827,1976.0,1974.7,0.001]
[1771249522033,0.45379381,1976.1,1974.7,0.001]
[1771249522202,1.7189407,1976.1,1974.7,0.48757757]
[1771249522524,1.26492612,1976.4,1974.7,0.48757757]
[1771249522702,1.71870531,1976.5,1974.7,0.48757757]
[1771249522903,1.71870531,1976.5,1974.9,0.48657757]
[1771249524012,1.2649115,1976.5,1974.9,0.48657757]
[1771249524216,2.17680047,1976.6,1975.1,0.48657757]
[1771249524500,2.17681778,1976.6,1975.1,0.48657757]
[1771249524740,0.912,1976.6,1975.1,0.48657757]
[1771249525137,2.17679943,1976.6,1975.2,0.48657757]
[1771249525313,0.0011,1975.8,1975.2,0.48657757]
[1771249525507,0.0011,1975.9,1975.2,0.48657757]
[1771249526814,1.26459522,1977.0,1975.2,0.48657757]
[1771249527031,1.26459522,1977.0,1975.4,0.48657757]
[1771249527249,1.26459522,1977.0,1975.6,0.48657757]
[1771249527448,3.43318303,1977.3,1975.6,0.48657757]
[1771249527956,1.2642225,1977.5,1975.8,0.48657757]
[1771249528121,0.801,1977.5,1976.0,0.48657757]
[1771249528321,1.26428643,1977.4,1976.0,0.48657757]
[1771249528518,0.45489381,1977.7,1976.2,0.48657757]
[1771249528721,1.26519748,1977.7,1976.4,0.48657757]
[1771249529029,1.26519748,1977.7,1976.3,1.431]
[1771249529253,0.0011,1977.7,1976.4,0.48657757]
[1771249530562,0.0011,1977.7,1976.6,0.48657757]
[1771249530922,0.0011,1977.7,1976.2,0.48657757]
[1771249531128,0.45489381,1977.7,1976.3,0.912]
[1771249532417,1.26415857,1977.6,1976.3,0.912]
[1771249532619,1.71795238,1977.6,1976.3,0.912]
[1771249534134,0.45379381,1977.5,1976.3,0.912]
[1771249534344,0.45379381,1977.3,1975.7,0.912]
[1771249534561,1.26441432,1977.2,1975.8,0.48657757]
[1771249537030,0.798,1977.1,1975.8,0.48657757]
[1771249539531,0.793,1977.4,1975.8,0.48657757]
[1771249540640,2.05729186,1977.4,1976.0,0.48657757]
[1771249541055,0.45379381,1977.3,1975.7,1.91757757]
[1771249541457,0.45379381,1977.3,1975.8,0.48657757]
[1771249541880,0.45379381,1977.1,1975.7,1.431]
[1771249542046,0.45379381,1976.9,1975.4,0.48657757]
[1771249542251,0.45379381,1977.3,1975.6,0.48657757]
[1771249542670,1.26447827,1977.1,1975.6,0.48657757]
[1771249543171,1.71827208,1977.1,1975.6,0.48657757]
[1771249544047,2.50127208,1977.1,1975.6,0.48657757]
[1771249544259,1.26447827,1977.1,1975.6,0.48657757]
[1771249544774,1.72896838,1977.1,1975.6,0.48657757]
[1771249545272,0.46449011,1977.1,1975.6,0.48657757]
[1771249545461,5.05727197,1977.4,1975.6,0.48657757]
[1771249545662,0.781,1977.3,1975.6,0.48657757]
[1771249546079,0.46449011,1977.1,1975.2,0.56774407]
[1771249546254,0.46449011,1977.1,1975.4,0.46534407]
[1771249546761,1.26454223,1977.0,1975.4,0.46534407]
[1771249547957,0.45971169,1977.5,1975.6,0.46942297]
[1771249548154,1.26428643,1977.4,1975.6,0.46942297]
[1771249548583,0.45861169,1977.3,1975.6,0.46942297]
[1771249549054,1.26441432,1977.2,1975.6,0.46942297]
[1771249549254,0.45861169,1977.1,1975.6,0.46942297]
[1771249549481,0.45861169,1976.9,1974.8,0.001]
[1771249549681,0.45861169,1976.9,1975.2,0.1024]
[1771249549682,0.45861169,1976.7,1975.2,0.1024]
[1771249549896,0.45861169,1976.7,1975.2,0.57182297]
[1771249550382,0.45861169,1976.7,1975.7,0.001]
[1771249551059,1.26479813,1976.6,1975.7,0.001]
[1771249551258,1.72339423,1976.7,1975.7,0.001]
[1771249552008,2.95667277,1976.8,1975.7,0.001]
[1771249552587,1.692,1976.8,1975.7,0.001]
[1771249553201,1.26459338,1977.0,1975.7,0.47042297]
[1771249553484,2.05659338,1977.0,1975.7,0.47042297]
[1771249553858,2.05655554,1977.0,1975.7,0.47042297]
[1771249558206,0.0011,1977.3,1976.1,0.46942297]
[1771249558367,1.26545153,1977.3,1976.1,0.46942297]
[1771249558693,1.26545387,1977.3,1976.1,0.46942297]
[1771249559565,0.0011,1977.3,1976.1,0.46942297]
[1771249560967,0.45971169,1977.3,1975.8,0.46942297]
[1771249561898,1.26441432,1977.2,1975.8,0.46942297]
[1771249562404,0.45861169,1977.1,1975.8,0.46942297]
[1771249563817,1.72312247,1977.1,1975.8,0.47042297]
[1771249565614,1.72312247,1977.1,1975.9,0.05060984]
[1771249565781,0.798,1977.0,1975.9,0.05060984]
[1771249566110,1.2646062,1976.9,1975.9,0.05060984]
[1771249567019,0.45861169,1976.8,1975.8,0.001]
[1771249567699,2.06254223,1977.0,1975.8,0.05159657]
[1771249568114,2.52115392,1977.0,1975.8,0.05159657]
[1771249568330,1.25661169,1977.0,1975.8,0.05159657]
[1771249568483,0.811,1976.9,1975.8,0.52101954]
[1771249570078,1.72315412,1977.0,1975.8,0.52101954]
[1771249570281,0.814,1976.9,1975.8,0.52101954]
[1771249574032,0.818,1977.1,1975.8,0.52101954]
[1771249574408,0.0011,1977.2,1975.8,0.47042297]
[1771249574731,0.0011,1977.2,1976.0,9.61524827]
[1771249574932,0.0011,1977.2,1976.2,0.46665644]
[1771249575119,0.0011,1977.2,1976.1,0.912]
[1771249575120,0.0011,1977.2,1976.3,0.519]
[1771249575318,0.0011,1977.2,1976.1,1.89765644]
[1771249575618,0.0011,1977.2,1976.2,0.46665644]
[1771249575824,0.49662422,1977.2,1976.1,1.431]
[1771249576333,0.0011,1977.2,1976.1,1.89765644]
[1771249576828,0.0011,1977.0,1976.1,1.89765644]
[1771249577052,0.0011,1977.0,1976.2,0.46665644]
[1771249579448,0.0011,1977.2,1976.2,0.18685624]
[1771249579640,0.0011,1977.4,1976.4,0.46665644]
[1771249579838,0.0011,1977.4,1976.6,0.46665644]
[1771249580030,0.0011,1977.4,1976.8,0.46665644]
[1771249580643,0.0011,1977.6,1976.8,0.46665644]
[1771249580846,0.0011,1977.6,1976.7,1.431]
[1771249580847,0.0011,1977.8,1977.0,0.46665644]
[1771249581563,0.0011,1977.8,1977.1,0.519]
[1771249581928,0.0011,1977.8,1976.9,0.46665644]
[1771249582124,0.0011,1977.8,1977.0,0.98565644]
[1771249583253,0.0011,1977.8,1977.1,0.46665644]
[1771249584188,0.0011,1977.8,1977.0,0.519]
[1771249584189,0.0011,1977.8,1977.2,0.46665644]
[1771249585983,0.0011,1978.0,1977.2,0.46665644]
[1771249586161,0.0011,1978.0,1977.4,0.46665644]
[1771249586360,0.0011,1978.0,1977.6,0.46665644]
[1771249586753,0.5,1978.5,1977.7,0.46665644]
[1771249587847,0.40383154,1978.5,1977.9,0.46665644]
[1771249588146,0.40383154,1978.5,1978.0,0.98565644]
[1771249588572,0.40383154,1978.5,1978.0,0.46665644]
[1771249588738,0.40383154,1978.5,1978.1,0.519]
[1771249591884,0.40383154,1978.5,1977.6,0.61962278]
[1771249592085,0.40383154,1978.5,1977.7,1.43]
[1771249592379,0.0011,1978.4,1977.8,0.05056122]
[1771249593692,0.0011,1978.4,1977.7,1.48056378]
[1771249594590,0.0011,1978.4,1977.8,0.46665644]
[1771249594793,0.0011,1978.4,1977.9,0.05055866]
[1771249595086,0.40493154,1978.5,1977.9,0.5172151]
[1771249595270,0.40493154,1978.5,1977.9,0.05055866]
[1771249596893,0.40493154,1978.5,1978.0,0.519]
[1771249597114,0.49552422,1978.4,1977.0,0.001]
[1771249597300,0.49552422,1978.2,1977.0,0.52]
[1771249597520,0.90045576,1978.5,1977.1,9.32633336]
[1771249597798,0.90045576,1978.5,1977.1,0.001]
[1771249597799,0.54608303,1978.4,1977.1,0.001]
[1771249598197,0.49552422,1978.1,1977.1,0.001]
[1771249599497,0.49552422,1977.9,1977.0,0.001]
[1771249599675,0.49552422,1977.6,1976.1,0.911]
[1771249599873,0.49552422,1977.6,1976.2,0.519]
[1771249600068,1.2642225,1977.5,1976.2,0.519]
[1771249600269,0.49552422,1977.4,1976.2,0.519]
[1771249601680,0.49552422,1977.5,1976.2,0.519]
[1771249602709,1.75975468,1977.5,1976.2,0.519]
[1771249603005,0.49552422,1977.4,1976.2,0.519]
[1771249603786,0.47798642,1977.3,1975.8,0.52]
[1771249604481,0.47798642,1977.1,1975.8,0.52]
[1771249604682,1.26441432,1977.2,1975.9,0.49761734]
[1771249604878,0.762,1977.2,1976.3,0.001]
[1771249606627,0.761,1977.3,1976.3,0.001]
[1771249607920,0.81155881,1977.3,1976.3,0.001]
[1771249608441,0.81255881,1977.3,1976.3,0.001]
[1771249608606,0.762,1977.3,1976.3,0.001]
[1771249608803,0.81255881,1977.3,1976.3,0.001]
[1771249609111,0.05055881,1977.3,1976.3,0.001]
[1771249609733,1.25903891,1977.2,1976.3,0.001]
[1771249609900,0.54659772,1977.1,1976.3,0.001]
[1771249610230,0.54659772,1977.1,1976.0,0.001]
[1771249610602,0.49603891,1976.9,1976.0,0.001]
[1771249611210,0.54659772,1976.9,1976.0,0.001]
[1771249611408,0.49603891,1976.7,1976.0,0.001]
[1771249611603,0.49603891,1976.5,1976.0,0.001]
[1771249612506,1.26492612,1976.4,1976.0,0.001]
[1771249612707,0.767,1976.4,1976.0,0.001]
[1771249612923,0.768,1976.4,1976.0,0.001]
[1771249613430,1.7609037,1976.5,1976.0,0.001]
[1771249613621,0.77,1976.4,1976.0,0.001]
[1771249614932,0.49603891,1976.0,1974.7,0.001]
[1771249615095,0.49603891,1975.8,1974.7,0.001]
[1771249615500,0.49603891,1975.7,1974.7,0.001]
[1771249617126,1.76145117,1975.7,1974.7,0.001]
[1771249617515,0.49603891,1975.6,1974.7,0.001]
[1771249617902,0.49603891,1975.4,1974.6,0.001]
[1771249618264,0.777,1975.3,1974.9,0.001]
[1771249619535,0.49603891,1975.2,1974.6,0.001]
[1771249620030,1.76157597,1975.5,1974.6,0.001]
[1771249620226,0.49603891,1975.8,1974.6,0.001]
[1771249620444,0.78,1975.7,1974.6,0.48408127]
[1771249620644,1.27603891,1975.7,1974.6,0.001]
[1771249620867,0.49603891,1975.5,1974.6,0.001]
[1771249621289,0.78,1975.4,1974.6,0.001]
[1771249621572,1.26563053,1975.3,1974.6,0.001]
[1771249621878,0.49603891,1975.3,1974.6,0.001]
[1771249622249,0.05055881,1975.5,1974.6,0.001]
[1771249622452,0.83055881,1975.5,1974.6,0.001]
[1771249622781,2.09606585,1975.5,1974.6,0.001]
[1771249622988,0.83055881,1975.5,1974.6,0.001]
[1771249624153,0.83055881,1975.5,1974.6,0.48408127]
[1771249624342,0.83055881,1975.5,1974.6,0.001]
[1771249624962,0.05055881,1975.5,1974.6,0.48408127]
[1771249626284,0.05055881,1975.8,1974.6,0.48408127]
[1771249627058,1.26512166,1976.1,1974.6,0.48408127]
[1771249627059,0.05055881,1976.0,1974.6,0.48408127]
[1771249627602,0.05055881,1976.1,1974.8,0.48308127]
[1771249628496,0.05055881,1976.3,1974.8,0.48308127]
[1771249629495,0.54659772,1976.3,1974.9,1.91408127]
[1771249630077,1.76109305,1976.2,1974.9,1.91408127]
[1771249630279,0.05055881,1976.1,1974.9,1.91408127]
[1771249630810,0.0011,1975.9,1974.9,1.91408127]
[1771249631496,0.05165881,1975.9,1974.9,1.91408127]
[1771249631897,0.05165881,1975.9,1974.9,0.48308127]
[1771249632700,0.05165881,1975.9,1974.7,1.432]
[1771249632701,0.49603891,1975.8,1974.7,0.001]
[1771249632890,0.54659772,1975.7,1974.7,0.001]
[1771249633804,0.49904898,1975.6,1974.7,0.001]
[1771249634006,0.54960779,1975.5,1974.7,0.001]
[1771249634207,1.26556646,1975.4,1974.7,0.001]
[1771249634384,0.05055881,1975.3,1974.7,0.001]
[1771249634581,0.54960779,1975.3,1974.7,0.001]
[1771249634968,1.31160779,1975.3,1974.7,0.001]
[1771249635302,0.81255881,1975.3,1974.7,0.001]
[1771249635605,0.05055881,1975.3,1974.7,0.001]
[1771249635801,0.763,1975.6,1974.7,0.001]
[1771249635802,0.05055881,1975.5,1974.7,0.001]
[1771249636577,1.31606782,1975.5,1974.7,0.001]
[1771249636899,0.05055881,1975.5,1974.7,0.001]
[1771249637108,0.05055881,1975.8,1974.7,0.48595127]
[1771249637710,0.0011,1975.9,1974.7,0.48595127]
[1771249638423,0.05165881,1976.2,1975.4,0.48495127]
[1771249638424,0.0011,1976.2,1975.4,0.48495127]
[1771249638797,0.0011,1976.2,1975.1,1.91595127]
[1771249638995,1.26617403,1976.2,1975.1,1.91595127]
[1771249639175,0.0011,1976.2,1975.1,0.48495127]
[1771249642317,0.0011,1976.2,1974.9,1.431]
[1771249642617,1.76520312,1976.2,1974.9,1.431]
[1771249643186,0.50014898,1976.2,1974.9,1.91595127]
[1771249643620,0.0011,1976.1,1974.9,1.91595127]
[1771249643994,0.0011,1976.1,1975.0,0.48495127]
[1771249646533,0.0011,1976.4,1975.4,0.48495127]
[1771249646838,0.0011,1976.4,1975.5,0.519]
[1771249647936,0.0011,1976.4,1975.6,0.48495127]
[1771249650024,0.0011,1976.4,1975.5,0.519]
[1771249650347,0.0011,1976.4,1975.6,0.48495127]
[1771249651665,0.0011,1976.4,1975.5,0.519]
[1771249651957,0.0011,1976.4,1975.3,0.48495127]
[1771249652123,0.0011,1976.4,1975.4,0.519]
[1771249652327,0.0011,1976.4,1975.5,0.48495127]
[1771249652920,0.0011,1976.4,1975.4,0.519]
[1771249653343,0.49904898,1976.2,1974.7,0.48595127]
[1771249653725,0.49904898,1976.0,1974.7,0.001]
[1771249654554,0.49904898,1975.8,1974.7,0.001]
[1771249655248,0.49904898,1975.8,1974.8,0.001]
[1771249656018,1.26523267,1976.0,1974.8,0.001]
[1771249656656,0.50014898,1976.1,1974.8,0.48595127]
[1771249656922,1.76526872,1976.1,1974.8,0.48595127]
[1771249657344,0.50014898,1976.1,1974.8,0.48595127]
[1771249657524,1.76527624,1976.1,1974.8,0.48595127]
[1771249657957,0.0011,1976.1,1974.8,0.48595127]
[1771249659635,0.0011,1976.1,1974.8,10.0943602]
[1771249659842,0.0011,1976.1,1974.9,0.48495127]
[1771249660739,1.76529416,1976.1,1974.9,0.48495127]
[1771249660973,0.0011,1976.1,1974.9,0.48495127]
[1771249661149,1.26621897,1976.1,1974.9,0.48495127]
[1771249661462,1.76526795,1976.1,1974.8,0.001]
[1771249661651,0.50014898,1976.1,1974.8,0.001]
[1771249661850,0.50014898,1976.1,1974.8,0.48595127]
[1771249662231,1.76527396,1976.1,1974.8,0.48595127]
[1771249662430,0.50014898,1976.1,1974.8,0.48595127]
[1771249662635,1.76526774,1976.1,1974.8,0.48595127]
[1771249666278,0.50014898,1976.1,1974.8,0.48595127]
[1771249667376,0.50014898,1976.1,1974.9,0.001]
[1771249667607,0.0011,1976.0,1974.9,0.001]
[1771249669477,0.47021149,1976.0,1974.9,0.001]
[1771249669657,0.46911149,1975.8,1974.9,0.001]
[1771249670053,0.46911149,1975.6,1974.9,0.001]
[1771249671678,1.73461389,1975.5,1974.9,0.001]
[1771249671847,1.2655024,1975.5,1974.9,0.001]
[1771249672051,0.46911149,1975.4,1974.9,0.001]
[1771249673651,1.73474202,1975.3,1974.9,0.001]
[1771249674482,2.47774202,1975.3,1974.9,0.001]
[1771249674870,0.46911149,1975.2,1974.7,0.001]
[1771249675474,0.743,1975.3,1974.7,0.001]
[1771249676056,0.46911149,1975.5,1974.7,0.001]
[1771249676276,1.26543642,1975.7,1974.7,0.001]
[1771249676479,0.749,1975.6,1974.7,0.001]
[1771249676955,0.749,1975.6,1974.7,0.46563695]
[1771249677588,9.60840893,1975.5,1974.5,0.001]
[1771249677787,13.927748,1975.4,1974.5,0.001]
[1771249678092,1.26569461,1975.2,1974.5,0.001]
[1771249678291,0.75,1975.1,1974.5,0.001]
[1771249678455,1.73460223,1975.6,1974.5,0.001]
[1771249678660,0.752,1975.4,1974.5,0.001]
[1771249679361,0.752,1975.4,1974.8,0.001]
[1771249679564,0.7531,1975.4,1974.5,0.001]
[1771249679992,0.7531,1975.4,1974.7,0.001]
[1771249680181,1.26563053,1975.3,1974.7,0.001]
[1771249681694,0.46911149,1975.2,1974.7,0.001]
[1771249682160,1.73483716,1975.2,1974.7,0.001]
[1771249682365,2.48782098,1975.4,1974.7,0.001]
[1771249682678,0.47021149,1975.4,1974.7,0.001]
[1771249682880,2.50078317,1975.4,1974.7,0.001]
[1771249683392,0.46911149,1975.3,1974.7,0.001]
[1771249683696,0.765,1975.2,1974.7,0.001]
[1771249684568,0.768,1975.3,1974.7,0.001]
[1771249686595,2.03363088,1975.3,1974.7,0.001]
[1771249686782,0.46911149,1975.2,1974.7,0.001]
[1771249687316,0.46911149,1975.2,1974.5,0.001]
[1771249687874,2.03363088,1975.3,1974.5,0.001]
[1771249687875,3.34310982,1975.1,1974.5,0.001]
[1771249688076,0.46911149,1975.1,1974.5,0.001]
[1771249688496,1.73491406,1975.1,1974.5,0.001]
[1771249688896,0.46911149,1974.5,1973.4,0.003]
[1771249689096,5.0293014,1974.4,1972.9,0.46463695]
[1771249689398,2.15611149,1974.4,1972.9,0.46463695]
[1771249689573,0.46911149,1974.3,1972.9,0.46463695]
[1771249691381,1.26633573,1974.2,1972.9,0.46463695]
[1771249691766,1.26633573,1974.2,1971.8,0.46463695]
[1771249691767,0.46911149,1973.9,1971.8,0.46463695]
[1771249691966,0.46911149,1973.7,1972.0,0.46463695]
[1771249692198,0.46911149,1973.6,1972.0,0.46463695]
[1771249692497,0.46911149,1973.6,1972.1,0.46463695]
[1771249692793,0.782,1973.6,1972.1,0.46463695]
[1771249693195,0.782,1973.6,1972.2,0.18685624]
[1771249693367,0.782,1973.6,1972.3,0.46463695]
[1771249693567,1.693,1973.9,1972.3,0.46463695]
[1771249693973,1.693,1973.9,1972.5,0.45574933]
[1771249695078,1.693,1973.9,1972.5,0.45574933]
[1771249695768,2.959539,1973.9,1972.6,0.45574933]
[1771249695970,1.693,1973.9,1972.6,0.45574933]
[1771249696399,0.913,1973.9,1972.6,0.45574933]
[1771249696923,2.17954618,1973.9,1972.6,0.45574933]
[1771249697068,0.776,1973.8,1972.6,0.45574933]
[1771249697368,0.45936143,1973.7,1972.3,1.88774933]
[1771249697572,1.26672071,1973.6,1972.3,1.88774933]
[1771249697802,1.26672071,1973.6,1972.4,0.45574933]
[1771249698375,1.72608214,1973.6,1972.4,0.45574933]
[1771249699205,0.45936143,1973.5,1972.1,1.88774933]
[1771249699383,0.45936143,1973.5,1972.1,0.45574933]
[1771249699583,1.72614908,1973.5,1972.1,0.45574933]
[1771249699779,0.45936143,1973.4,1972.1,0.45574933]
[1771249700979,0.778,1973.3,1972.1,0.45574933]
[1771249701371,1.23736143,1973.4,1972.1,0.45574933]
[1771249702198,2.50421143,1973.4,1972.1,0.45574933]
[1771249702608,1.23736143,1973.4,1972.1,0.45574933]
[1771249702983,2.50421306,1973.4,1972.1,0.45574933]
[1771249703181,0.45936143,1973.3,1972.0,1.432]
[1771249703397,0.45936143,1973.3,1972.0,1.88774933]
[1771249703793,1.72633892,1973.2,1972.0,1.88774933]
[1771249704179,0.45936143,1973.1,1972.0,1.88774933]
[1771249704416,0.781,1973.0,1971.8,0.45574933]
[1771249704593,0.781,1973.1,1971.8,0.45574933]
[1771249704792,1.24036143,1973.1,1971.8,0.45574933]
[1771249705218,1.26696547,1973.3,1971.8,0.45574933]
[1771249705419,0.781,1973.2,1972.2,0.001]
[1771249706068,2.04798189,1973.2,1972.2,0.001]
[1771249706388,2.50734332,1973.2,1972.2,0.001]
[1771249706686,0.45936143,1973.1,1972.2,0.001]
[1771249706900,0.45936143,1973.1,1972.0,0.001]
[1771249707102,0.45936143,1972.7,1971.5,0.45574933]
[1771249707425,1.24436143,1972.6,1971.5,0.45574933]
[1771249707629,0.785,1972.6,1971.2,0.45574933]
[1771249707913,0.45936143,1972.5,1971.2,0.45574933]
[1771249708115,0.45936143,1972.3,1970.9,0.45574933]
[1771249708287,0.786,1972.2,1971.0,0.45574933]
[1771249708999,1.24536143,1972.2,1971.0,0.45574933]
[1771249709437,0.45936143,1972.1,1970.9,0.52]
[1771249709593,0.45936143,1972.1,1970.8,0.913]
[1771249709913,0.45936143,1972.0,1970.8,0.913]
[1771249710295,0.45936143,1971.9,1970.8,0.913]
[1771249710517,0.45936143,1972.0,1970.8,1.36874933]
[1771249710691,0.913,1972.1,1970.9,0.47173877]
[1771249710885,1.72695974,1972.3,1970.9,0.47173877]
[1771249711211,1.72691855,1972.3,1970.9,0.47173877]
[1771249711410,0.45936143,1972.6,1970.9,0.47173877]
[1771249711724,0.786,1972.6,1970.9,0.47173877]
[1771249712192,0.45936143,1972.4,1970.9,0.47173877]
[1771249712393,0.45936143,1972.4,1971.1,0.45574933]
[1771249712721,0.45936143,1972.4,1971.1,0.47173714]
[1771249713012,0.45936143,1972.5,1971.1,0.01598781]
[1771249713224,0.45936143,1971.9,1970.2,0.45574933]
[1771249713393,0.45936143,1971.6,1970.3,0.52]
[1771249714021,0.45936143,1970.8,1969.2,0.45574933]
[1771249714324,0.45936143,1970.8,1968.8,0.45574933]
[1771249714325,0.45936143,1970.6,1968.8,0.45574933]
[1771249714485,0.45936143,1970.3,1968.7,0.45574933]
[1771249714689,0.45936143,1970.7,1968.7,0.45574933]
[1771249714994,0.45936143,1970.7,1968.6,8.89375201]
[1771249714995,0.97936143,1970.6,1969.1,0.45574933]
[1771249715188,0.97936143,1970.6,1969.2,0.52]
[1771249715387,0.97936143,1970.6,1969.2,0.97574933]
[1771249716123,0.45936143,1970.5,1969.1,0.52]
[1771249716288,0.45936143,1970.3,1969.1,0.52]
[1771249716896,0.45936143,1970.3,1968.9,0.45574933]
[1771249717124,0.45936143,1970.3,1968.9,0.97574933]
[1771249717290,0.52,1970.6,1969.0,0.45574933]
[1771249717808,0.45936143,1971.0,1969.4,0.45574933]
[1771249718013,0.45936143,1971.0,1969.6,0.45574933]
[1771249718201,0.45936143,1971.0,1969.7,0.97574933]
[1771249718399,0.786,1971.1,1969.7,0.97574933]
[1771249718400,0.01598781,1971.2,1969.8,0.45574933]
[1771249718596,0.47534924,1971.3,1970.4,0.001]
[1771249718790,2.201919,1971.2,1970.4,0.001]
[1771249719013,0.01598781,1971.1,1970.4,0.001]
[1771249719235,0.01598781,1971.2,1970.4,0.001]
[1771249719720,0.01598781,1971.3,1970.4,0.001]
[1771249721210,0.01598781,1971.5,1970.4,0.45674933]
[1771249721404,0.01598781,1971.4,1970.4,0.45674933]
[1771249721606,0.01598781,1971.9,1970.4,0.45674933]
[1771249721811,0.45936143,1971.7,1970.4,0.45674933]
[1771249722114,8.89375201,1971.5,1970.4,0.45674933]
[1771249722317,0.01598781,1971.4,1970.4,0.45674933]
[1771249722548,1.28399349,1971.6,1970.4,0.45674933]
[1771249722844,0.01598781,1971.6,1970.4,0.45674933]
[1771249724544,1.74752003,1971.5,1970.4,0.001]
[1771249724717,0.01598781,1971.4,1970.4,0.001]
[1771249725306,1.74752003,1971.5,1970.4,0.001]
[1771249725620,0.47945004,1971.5,1970.4,0.001]
[1771249726247,1.74731547,1971.9,1970.5,0.46353925]
[1771249727035,2.52931547,1971.9,1970.5,0.46353925]
[1771249727539,1.26145004,1971.9,1970.5,0.46353925]
[1771249727839,0.782,1972.1,1970.5,0.46353925]
[1771249728836,2.04970961,1972.1,1970.5,0.46353925]
[1771249729517,0.782,1972.1,1970.5,0.46353925]
[1771249729716,0.782,1972.1,1970.5,0.47633978]
[1771249729922,2.04971258,1972.1,1970.5,0.47633978]
[1771249731241,0.782,1972.1,1970.5,0.47633978]
[1771249731736,1.23925644,1972.1,1970.5,0.47633978]
[1771249731940,0.0011,1972.0,1970.5,0.47633978]